[Event "*** Titled Tuesday Blitz"]
[Site "Chess.com"]
[Date "2020.04.21"]
[Round "9"]
[White "enriquetejedor"]
[Black "ljuks68"]
[Result "1-0"]
[WhiteElo "2509"]
[BlackElo "2336"]
[TimeControl "180+1"]
[EndTime "11:48:35 PDT"]
[Termination "enriquetejedor won by resignation"]

1. e4 {[%clk 0:03:00.9]} 1... e6 {[%clk 0:02:58.3]} 2. d4 {[%clk 0:03:01]} 2...
d5 {[%clk 0:02:55.8]} 3. Nc3 {[%clk 0:03:01.9]} 3... Bb4 {[%clk 0:02:54.6]} 4.
e5 {[%clk 0:03:01.7]} 4... Ne7 {[%clk 0:02:54.3]} 5. a3 {[%clk 0:03:02.6]} 5...
Bxc3+ {[%clk 0:02:54]} 6. bxc3 {[%clk 0:03:03.5]} 6... c5 {[%clk 0:02:54.4]} 7.
h4 {[%clk 0:03:04.2]} 7... Bd7 {[%clk 0:02:50.3]} 8. h5 {[%clk 0:03:04.4]} 8...
h6 {[%clk 0:02:50.5]} 9. Qg4 {[%clk 0:03:03.5]} 9... Nf5 {[%clk 0:02:48.3]} 10.
Bd2 {[%clk 0:03:04.4]} 10... c4 {[%clk 0:02:46.8]} 11. Ne2 {[%clk 0:03:03.5]}
11... Ba4 {[%clk 0:02:44.9]} 12. Rc1 {[%clk 0:03:03.6]} 12... Nc6 {[%clk
0:02:44.7]} 13. Ng3 {[%clk 0:03:03.6]} 13... Nce7 {[%clk 0:02:44.6]} 14. Nxf5
{[%clk 0:03:03.3]} 14... Nxf5 {[%clk 0:02:44.2]} 15. Qf4 {[%clk 0:03:04.2]}
15... Qb6 {[%clk 0:02:31]} 16. g4 {[%clk 0:02:45.3]} 16... Ne7 {[%clk
0:02:30.4]} 17. Be2 {[%clk 0:02:44.8]} 17... Qb2 {[%clk 0:02:18.9]} 18. Bd1
{[%clk 0:02:44.7]} 18... Qxa3 {[%clk 0:02:01.3]} 19. g5 {[%clk 0:02:37.9]} 19...
hxg5 {[%clk 0:01:07.4]} 20. Qxg5 {[%clk 0:02:38.8]} 20... O-O-O {[%clk
0:01:02.1]} 21. Qxg7 {[%clk 0:02:26.1]} 21... Nf5 {[%clk 0:00:58.9]} 22. Qxf7
{[%clk 0:02:24.9]} 22... Bd7 {[%clk 0:00:59.3]} 23. h6 {[%clk 0:02:22.6]} 23...
Nxh6 {[%clk 0:00:38.5]} 24. Rxh6 {[%clk 0:02:18.9]} 24... Rxh6 {[%clk
0:00:37.3]} 25. Bxh6 {[%clk 0:02:19.8]} 25... Qxc3+ {[%clk 0:00:37.7]} 26. Bd2
{[%clk 0:02:13.4]} 26... Qxd4 {[%clk 0:00:37.8]} 27. Qf4 {[%clk 0:02:13.6]}
27... Qc5 {[%clk 0:00:32.3]} 28. c3 {[%clk 0:01:33.8]} 28... b6 {[%clk
0:00:20.7]} 29. Ra1 {[%clk 0:01:30.8]} 29... Kb7 {[%clk 0:00:18.1]} 30. Qf7
{[%clk 0:01:24]} 30... a5 {[%clk 0:00:16.9]} 31. Bg5 {[%clk 0:01:14.2]} 1-0

[Event "*** Titled Tuesday Blitz"]
[Site "Chess.com"]
[Date "2020.04.21"]
[Round "9"]
[White "RovenVogel"]
[Black "stoleriu"]
[Result "1-0"]
[WhiteElo "2699"]
[BlackElo "2525"]
[TimeControl "180+1"]
[EndTime "11:48:39 PDT"]
[Termination "RovenVogel won on time"]

1. c4 {[%clk 0:03:00.9]} 1... e5 {[%clk 0:02:59.9]} 2. Nc3 {[%clk 0:02:55.3]}
2... Nc6 {[%clk 0:03:00.8]} 3. g3 {[%clk 0:02:53.3]} 3... g6 {[%clk 0:03:00.8]}
4. Bg2 {[%clk 0:02:53.1]} 4... Bg7 {[%clk 0:03:01.2]} 5. e3 {[%clk 0:02:50.2]}
5... d6 {[%clk 0:03:00.9]} 6. Nge2 {[%clk 0:02:50.5]} 6... h5 {[%clk 0:03:01.2]}
7. h3 {[%clk 0:02:41.6]} 7... Be6 {[%clk 0:03:01.1]} 8. b3 {[%clk 0:02:38.9]}
8... Nge7 {[%clk 0:03:01.1]} 9. Bb2 {[%clk 0:02:35.2]} 9... Qd7 {[%clk
0:03:01.3]} 10. d3 {[%clk 0:02:30.7]} 10... d5 {[%clk 0:02:53]} 11. cxd5 {[%clk
0:02:27.5]} 11... Nxd5 {[%clk 0:02:53.9]} 12. Ne4 {[%clk 0:02:27.2]} 12... Qe7
{[%clk 0:02:47.8]} 13. Rc1 {[%clk 0:02:21.1]} 13... f5 {[%clk 0:02:43.1]} 14.
Nc5 {[%clk 0:02:20.3]} 14... Nd8 {[%clk 0:02:17.9]} 15. Nxe6 {[%clk 0:02:13.3]}
15... Qxe6 {[%clk 0:02:18.8]} 16. e4 {[%clk 0:02:08.4]} 16... Nb4 {[%clk
0:01:36.9]} 17. d4 {[%clk 0:01:49.1]} 17... fxe4 {[%clk 0:01:25.6]} 18. O-O
{[%clk 0:01:39.2]} 18... c6 {[%clk 0:01:15.4]} 19. Bxe4 {[%clk 0:01:36.2]} 19...
O-O {[%clk 0:01:06.1]} 20. dxe5 {[%clk 0:01:25.9]} 20... Nf7 {[%clk 0:00:33.2]}
21. Nf4 {[%clk 0:01:24.1]} 21... Qc8 {[%clk 0:00:27.6]} 22. Bxg6 {[%clk
0:01:20.6]} 22... Ng5 {[%clk 0:00:10.6]} 23. Qxh5 {[%clk 0:01:14.8]} 23... Rxf4
{[%clk 0:00:10.6]} 24. Qxg5 {[%clk 0:01:14.9]} 24... Rf8 {[%clk 0:00:02.3]} 25.
Qh5 {[%clk 0:01:15.1]} 25... Rd8 {[%clk 0:00:01.7]} 26. Qh7+ {[%clk 0:01:06.4]}
26... Kf8 {[%clk 0:00:01.9]} 27. e6 {[%clk 0:01:06.7]} 1-0

[Event "*** Titled Tuesday Blitz"]
[Site "Chess.com"]
[Date "2020.04.21"]
[Round "9"]
[White "murtas73"]
[Black "Sharpchess22"]
[Result "0-1"]
[WhiteElo "2638"]
[BlackElo "2759"]
[TimeControl "180+1"]
[EndTime "11:48:40 PDT"]
[Termination "Sharpchess22 won by resignation"]

1. d4 {[%clk 0:03:00.9]} 1... Nf6 {[%clk 0:02:59.7]} 2. c4 {[%clk 0:03:01.1]}
2... e6 {[%clk 0:02:59.9]} 3. Nc3 {[%clk 0:03:00.9]} 3... Bb4 {[%clk 0:02:59.5]}
4. e3 {[%clk 0:03:01.4]} 4... O-O {[%clk 0:02:57.8]} 5. Bd3 {[%clk 0:03:01.9]}
5... d5 {[%clk 0:02:57.8]} 6. Ne2 {[%clk 0:03:01]} 6... c5 {[%clk 0:02:55]} 7.
cxd5 {[%clk 0:03:00.7]} 7... exd5 {[%clk 0:02:51.2]} 8. O-O {[%clk 0:02:59.1]}
8... Nc6 {[%clk 0:02:50]} 9. a3 {[%clk 0:02:56]} 9... Bxc3 {[%clk 0:02:50.1]}
10. bxc3 {[%clk 0:02:56.9]} 10... b6 {[%clk 0:02:39.3]} 11. Ng3 {[%clk
0:02:54.8]} 11... Re8 {[%clk 0:02:37.5]} 12. f3 {[%clk 0:02:52.2]} 12... h5
{[%clk 0:02:35.9]} 13. Ra2 {[%clk 0:02:46.9]} 13... h4 {[%clk 0:02:35.7]} 14.
Nh1 {[%clk 0:02:46.7]} 14... Qd6 {[%clk 0:02:27.4]} 15. Re2 {[%clk 0:02:44.1]}
15... a5 {[%clk 0:02:26.6]} 16. Nf2 {[%clk 0:02:39.8]} 16... Ba6 {[%clk
0:02:26.2]} 17. Bxa6 {[%clk 0:02:33.1]} 17... Rxa6 {[%clk 0:02:27.1]} 18. Bb2
{[%clk 0:02:32.3]} 18... Rd8 {[%clk 0:02:23.3]} 19. Kh1 {[%clk 0:02:18.9]} 19...
Ra7 {[%clk 0:02:23.1]} 20. e4 {[%clk 0:02:17.9]} 20... dxe4 {[%clk 0:02:22.5]}
21. fxe4 {[%clk 0:02:17.1]} 21... cxd4 {[%clk 0:02:20.7]} 22. cxd4 {[%clk
0:02:17.1]} 22... Qe7 {[%clk 0:02:14.7]} 23. d5 {[%clk 0:02:11.6]} 23... Ne5
{[%clk 0:02:11.5]} 24. Qd4 {[%clk 0:02:11.2]} 24... Nfd7 {[%clk 0:02:05.6]} 25.
Ng4 {[%clk 0:01:58.9]} 25... Re8 {[%clk 0:02:03.5]} 26. Ref2 {[%clk 0:01:49.2]}
26... f6 {[%clk 0:01:57.7]} 27. Ne3 {[%clk 0:01:48.4]} 27... Qc5 {[%clk
0:01:51.9]} 28. Qd1 {[%clk 0:01:38.5]} 28... Qxe3 {[%clk 0:01:51.2]} 29. Qh5
{[%clk 0:01:34.3]} 29... Raa8 {[%clk 0:01:50.7]} 30. Qxh4 {[%clk 0:01:30.7]}
30... Qg5 {[%clk 0:01:40.9]} 31. Qh3 {[%clk 0:01:28.2]} 31... Qg4 {[%clk
0:01:40.6]} 32. Qb3 {[%clk 0:01:24.7]} 32... Qxe4 {[%clk 0:01:40.3]} 33. d6+
{[%clk 0:01:24.2]} 33... Qc4 {[%clk 0:01:40]} 34. Qg3 {[%clk 0:01:22.6]} 34...
Qe6 {[%clk 0:01:37.4]} 35. h3 {[%clk 0:01:19]} 35... Rac8 {[%clk 0:01:37.3]} 36.
Rf5 {[%clk 0:01:13.4]} 36... Qxd6 {[%clk 0:01:36]} 37. Bc1 {[%clk 0:01:07.7]}
37... Qd3 {[%clk 0:01:28.1]} 38. Qf2 {[%clk 0:01:03.1]} 38... Rc2 {[%clk
0:01:26.2]} 39. Qf4 {[%clk 0:01:02.8]} 39... Qe2 {[%clk 0:01:22.3]} 40. Qg3
{[%clk 0:01:00.7]} 40... Qd3 {[%clk 0:01:14.9]} 41. Qf4 {[%clk 0:00:58.7]} 41...
Rec8 {[%clk 0:01:14.4]} 42. Be3 {[%clk 0:00:56.2]} 42... R8c4 {[%clk 0:01:12.6]}
43. Qg3 {[%clk 0:00:53.9]} 43... R4c3 {[%clk 0:01:09.1]} 0-1

[Event "*** Titled Tuesday Blitz"]
[Site "Chess.com"]
[Date "2020.04.21"]
[Round "9"]
[White "realmadridtv"]
[Black "dpruess"]
[Result "1-0"]
[WhiteElo "2329"]
[BlackElo "2435"]
[TimeControl "180+1"]
[EndTime "11:48:41 PDT"]
[Termination "realmadridtv won by resignation"]

1. d4 {[%clk 0:03:00.9]} 1... Nf6 {[%clk 0:02:59.6]} 2. c4 {[%clk 0:02:59.7]}
2... e6 {[%clk 0:02:59.8]} 3. g3 {[%clk 0:02:59.6]} 3... c5 {[%clk 0:02:59.4]}
4. d5 {[%clk 0:02:58.6]} 4... exd5 {[%clk 0:03:00.3]} 5. cxd5 {[%clk 0:02:59.5]}
5... d6 {[%clk 0:03:00.8]} 6. Bg2 {[%clk 0:02:59.8]} 6... g6 {[%clk 0:03:01.1]}
7. Nf3 {[%clk 0:02:57.7]} 7... Bg7 {[%clk 0:02:58.2]} 8. O-O {[%clk 0:02:57.3]}
8... b5 {[%clk 0:02:57.4]} 9. e4 {[%clk 0:02:51.2]} 9... O-O {[%clk 0:02:50.9]}
10. e5 {[%clk 0:02:50.7]} 10... Ne8 {[%clk 0:02:47.3]} 11. e6 {[%clk 0:02:38.3]}
11... Qe7 {[%clk 0:02:05.5]} 12. Ng5 {[%clk 0:02:29.1]} 12... f6 {[%clk
0:02:01.2]} 13. Ne4 {[%clk 0:02:23.5]} 13... Na6 {[%clk 0:01:59.8]} 14. a4
{[%clk 0:02:13.4]} 14... b4 {[%clk 0:01:54.7]} 15. Nbd2 {[%clk 0:02:12.3]} 15...
Nac7 {[%clk 0:01:53.7]} 16. Nc4 {[%clk 0:02:04.5]} 16... Bb7 {[%clk 0:01:31.8]}
17. Nexd6 {[%clk 0:01:54.7]} 17... Nxd6 {[%clk 0:01:26.7]} 18. Nxd6 {[%clk
0:01:54.6]} 18... Qxd6 {[%clk 0:01:25.7]} 19. Bf4 {[%clk 0:01:55.2]} 19... Qd8
{[%clk 0:01:10.5]} 20. e7 {[%clk 0:01:25.9]} 20... Qxe7 {[%clk 0:01:08.6]} 21.
d6 {[%clk 0:01:26.1]} 21... Qd7 {[%clk 0:00:55.5]} 22. Bxb7 {[%clk 0:01:05.4]}
22... Ne6 {[%clk 0:00:48.3]} 23. Qd5 {[%clk 0:00:58.3]} 23... Rad8 {[%clk
0:00:35.7]} 24. Rfe1 {[%clk 0:00:53]} 24... g5 {[%clk 0:00:20.3]} 25. Rxe6
{[%clk 0:00:46]} 25... Rf7 {[%clk 0:00:19.8]} 26. Re7 {[%clk 0:00:42.7]} 1-0

[Event "*** Titled Tuesday Blitz"]
[Site "Chess.com"]
[Date "2020.04.21"]
[Round "9"]
[White "Oglob71"]
[Black "AcsinteMatei"]
[Result "1-0"]
[WhiteElo "2424"]
[BlackElo "2248"]
[TimeControl "180+1"]
[EndTime "11:48:41 PDT"]
[Termination "Oglob71 won by resignation"]

1. d4 {[%clk 0:03:00.9]} 1... d5 {[%clk 0:02:59.4]} 2. Nf3 {[%clk 0:03:01]} 2...
Nf6 {[%clk 0:02:58.7]} 3. c4 {[%clk 0:03:01.5]} 3... c6 {[%clk 0:02:58.8]} 4. e3
{[%clk 0:03:01.3]} 4... a6 {[%clk 0:02:51.8]} 5. Bd2 {[%clk 0:03:00.5]} 5... e6
{[%clk 0:02:40.9]} 6. Qc2 {[%clk 0:02:57.1]} 6... Nbd7 {[%clk 0:02:39.7]} 7. Nc3
{[%clk 0:02:56.3]} 7... dxc4 {[%clk 0:02:35.9]} 8. Bxc4 {[%clk 0:02:55.3]} 8...
b5 {[%clk 0:02:36.1]} 9. Bd3 {[%clk 0:02:55.2]} 9... Be7 {[%clk 0:02:34]} 10.
O-O {[%clk 0:02:55]} 10... Bb7 {[%clk 0:02:34]} 11. Rfd1 {[%clk 0:02:51.3]}
11... O-O {[%clk 0:02:33.2]} 12. e4 {[%clk 0:02:45.4]} 12... h6 {[%clk
0:02:28.5]} 13. e5 {[%clk 0:02:41.1]} 13... Nd5 {[%clk 0:02:28.3]} 14. Nxd5
{[%clk 0:02:41.6]} 14... cxd5 {[%clk 0:02:20]} 15. Bf4 {[%clk 0:02:41.2]} 15...
Rc8 {[%clk 0:02:19.4]} 16. Qe2 {[%clk 0:02:41.4]} 16... Qb6 {[%clk 0:02:15.5]}
17. Qe3 {[%clk 0:02:40.3]} 17... f5 {[%clk 0:02:08.6]} 18. exf6 {[%clk 0:02:36]}
18... Bxf6 {[%clk 0:02:07.3]} 19. Re1 {[%clk 0:02:35.2]} 19... Rfe8 {[%clk
0:02:06.2]} 20. Rad1 {[%clk 0:02:33.4]} 20... Nf8 {[%clk 0:01:43.9]} 21. Bb1
{[%clk 0:02:30.8]} 21... Rc4 {[%clk 0:01:40.3]} 22. Ne5 {[%clk 0:02:29.6]} 22...
Rc7 {[%clk 0:01:34.6]} 23. Qd3 {[%clk 0:02:22.8]} 23... Bxe5 {[%clk 0:01:26.3]}
24. Bxe5 {[%clk 0:02:22.3]} 24... Rf7 {[%clk 0:01:26]} 25. Qg3 {[%clk
0:02:18.9]} 25... b4 {[%clk 0:01:19.3]} 26. Rc1 {[%clk 0:02:17.7]} 26... Bc6
{[%clk 0:01:15.8]} 27. h4 {[%clk 0:02:16.4]} 27... a5 {[%clk 0:01:15.1]} 28. h5
{[%clk 0:02:11.8]} 28... Ree7 {[%clk 0:01:11.9]} 29. Re2 {[%clk 0:02:05.6]}
29... Nd7 {[%clk 0:01:04.9]} 30. Qd3 {[%clk 0:02:01]} 30... Nf8 {[%clk
0:00:58.5]} 31. Rec2 {[%clk 0:01:58.5]} 31... Be8 {[%clk 0:00:58.4]} 32. Rc8
{[%clk 0:01:51.3]} 32... Rf5 {[%clk 0:00:57.2]} 33. g4 {[%clk 0:01:49]} 33...
Rxe5 {[%clk 0:00:55.2]} 34. dxe5 {[%clk 0:01:48.1]} 34... Rf7 {[%clk 0:00:54.4]}
35. Qe3 {[%clk 0:01:43.9]} 35... Qb5 {[%clk 0:00:45.3]} 36. R1c5 {[%clk
0:01:42]} 36... Qa4 {[%clk 0:00:45]} 37. b3 {[%clk 0:01:40.6]} 37... Qd7 {[%clk
0:00:44.5]} 38. R5c7 {[%clk 0:01:39.2]} 38... Qxc7 {[%clk 0:00:44.3]} 39. Rxc7
{[%clk 0:01:39]} 39... Rxc7 {[%clk 0:00:45.2]} 40. Bd3 {[%clk 0:01:37.1]} 40...
Rc3 {[%clk 0:00:43.3]} 41. Qd4 {[%clk 0:01:35.3]} 41... Nd7 {[%clk 0:00:42.5]}
42. Bb5 {[%clk 0:01:32.9]} 42... Rc5 {[%clk 0:00:40.5]} 43. Bxd7 {[%clk
0:01:31.8]} 43... Rc1+ {[%clk 0:00:40.4]} 44. Kh2 {[%clk 0:01:30.7]} 44... Bxd7
{[%clk 0:00:41.3]} 45. Qb6 {[%clk 0:01:28.7]} 45... Rc2 {[%clk 0:00:32.2]} 46.
Qd8+ {[%clk 0:01:27.3]} 46... Kh7 {[%clk 0:00:31.2]} 47. Qxd7 {[%clk 0:01:27.4]}
1-0

[Event "*** Titled Tuesday Blitz"]
[Site "Chess.com"]
[Date "2020.04.21"]
[Round "9"]
[White "lolo9292"]
[Black "mjray79"]
[Result "1-0"]
[WhiteElo "2491"]
[BlackElo "2264"]
[TimeControl "180+1"]
[EndTime "11:48:44 PDT"]
[Termination "lolo9292 won by checkmate"]

1. e4 {[%clk 0:03:00.9]} 1... e5 {[%clk 0:02:59.9]} 2. Nf3 {[%clk 0:03:01.6]}
2... Nc6 {[%clk 0:03:00.3]} 3. d4 {[%clk 0:03:02.5]} 3... exd4 {[%clk
0:02:59.1]} 4. Bc4 {[%clk 0:03:03.4]} 4... Bc5 {[%clk 0:02:58.1]} 5. c3 {[%clk
0:03:03]} 5... Nf6 {[%clk 0:02:57.6]} 6. e5 {[%clk 0:03:03.6]} 6... d5 {[%clk
0:02:56.3]} 7. Bb5 {[%clk 0:03:04.5]} 7... Ne4 {[%clk 0:02:54.9]} 8. cxd4 {[%clk
0:03:05.4]} 8... Bb6 {[%clk 0:02:53.7]} 9. Be3 {[%clk 0:03:05.7]} 9... O-O
{[%clk 0:02:50.5]} 10. Nc3 {[%clk 0:03:06.1]} 10... Bg4 {[%clk 0:02:49.5]} 11.
h3 {[%clk 0:03:05.2]} 11... Bh5 {[%clk 0:02:48]} 12. Qc2 {[%clk 0:03:02.2]}
12... Bg6 {[%clk 0:02:43.1]} 13. Qb3 {[%clk 0:03:01.2]} 13... Nxc3 {[%clk
0:02:33.8]} 14. bxc3 {[%clk 0:02:59.4]} 14... f6 {[%clk 0:02:33.7]} 15. exf6
{[%clk 0:02:58.6]} 15... Rxf6 {[%clk 0:02:32.7]} 16. Bxc6 {[%clk 0:02:59.5]}
16... bxc6 {[%clk 0:02:30.6]} 17. Ne5 {[%clk 0:03:00.4]} 17... Re6 {[%clk
0:02:09.6]} 18. f4 {[%clk 0:02:57.4]} 18... Be4 {[%clk 0:02:02.8]} 19. O-O
{[%clk 0:02:56.1]} 19... Qh4 {[%clk 0:01:56.2]} 20. Rf2 {[%clk 0:02:53.1]} 20...
Rf8 {[%clk 0:01:51]} 21. Raf1 {[%clk 0:02:47.1]} 21... Qg3 {[%clk 0:01:39.4]}
22. c4 {[%clk 0:02:40.9]} 22... Rh6 {[%clk 0:01:30.5]} 23. Rf3 {[%clk 0:02:17]}
23... Bxf3 {[%clk 0:01:25.1]} 24. Rxf3 {[%clk 0:02:17.9]} 24... Qe1+ {[%clk
0:01:23.8]} 25. Kh2 {[%clk 0:02:16.8]} 25... Qe2 {[%clk 0:01:07.6]} 26. Rg3
{[%clk 0:02:03.2]} 26... Rd6 {[%clk 0:00:54.2]} 27. c5 {[%clk 0:01:57.3]} 27...
Rdf6 {[%clk 0:00:51.4]} 28. cxb6 {[%clk 0:01:55.9]} 28... cxb6 {[%clk
0:00:52.3]} 29. Nd7 {[%clk 0:01:55.6]} 29... R6f7 {[%clk 0:00:49.8]} 30. Nxf8
{[%clk 0:01:49.9]} 30... Rxf8 {[%clk 0:00:50.7]} 31. Qc3 {[%clk 0:01:47.8]}
31... Re8 {[%clk 0:00:48.9]} 32. Qxc6 {[%clk 0:01:46.2]} 32... Rxe3 {[%clk
0:00:46.7]} 33. Qc8+ {[%clk 0:01:35.8]} 33... Re8 {[%clk 0:00:44.4]} 34. Qd7
{[%clk 0:01:35.3]} 34... Qe7 {[%clk 0:00:35.5]} 35. Qxd5+ {[%clk 0:01:36.2]}
35... Qf7 {[%clk 0:00:35.2]} 36. Qg5 {[%clk 0:01:35.5]} 36... h6 {[%clk
0:00:32]} 37. Qb5 {[%clk 0:01:32]} 37... Rd8 {[%clk 0:00:28.6]} 38. f5 {[%clk
0:01:17.7]} 38... Rxd4 {[%clk 0:00:27.7]} 39. Qe5 {[%clk 0:01:16.3]} 39... Kh7
{[%clk 0:00:21.3]} 40. Qxd4 {[%clk 0:01:15.1]} 40... Qxf5 {[%clk 0:00:21.8]} 41.
Qxg7# {[%clk 0:01:13.7]} 1-0

[Event "*** Titled Tuesday Blitz"]
[Site "Chess.com"]
[Date "2020.04.21"]
[Round "9"]
[White "AsaHoffmann"]
[Black "InfiniteAdaption"]
[Result "1-0"]
[WhiteElo "2366"]
[BlackElo "2458"]
[TimeControl "180+1"]
[EndTime "11:48:51 PDT"]
[Termination "AsaHoffmann won by resignation"]

1. d4 {[%clk 0:02:57]} 1... Nf6 {[%clk 0:02:55.9]} 2. Bg5 {[%clk 0:02:55.6]}
2... Ne4 {[%clk 0:02:51.5]} 3. Bf4 {[%clk 0:02:55.2]} 3... d5 {[%clk 0:02:50]}
4. f3 {[%clk 0:02:54.8]} 4... Nd6 {[%clk 0:02:46.7]} 5. Nc3 {[%clk 0:02:54]}
5... c6 {[%clk 0:02:40.9]} 6. e4 {[%clk 0:02:53.5]} 6... Be6 {[%clk 0:02:18.2]}
7. Bd3 {[%clk 0:02:52.1]} 7... g6 {[%clk 0:02:17.3]} 8. Nge2 {[%clk 0:02:51.2]}
8... Bg7 {[%clk 0:02:17.6]} 9. Qd2 {[%clk 0:02:51]} 9... Nd7 {[%clk 0:02:06.4]}
10. O-O {[%clk 0:02:48.2]} 10... dxe4 {[%clk 0:01:52.2]} 11. fxe4 {[%clk
0:02:47.2]} 11... Nb6 {[%clk 0:01:46.6]} 12. b3 {[%clk 0:02:45]} 12... O-O
{[%clk 0:01:44]} 13. Bh6 {[%clk 0:02:43.2]} 13... a5 {[%clk 0:01:29.8]} 14. Bxg7
{[%clk 0:02:42.4]} 14... Kxg7 {[%clk 0:01:30.7]} 15. a4 {[%clk 0:02:40.1]} 15...
Bg4 {[%clk 0:01:21.3]} 16. Nf4 {[%clk 0:02:31.9]} 16... Qc7 {[%clk 0:00:58.3]}
17. h3 {[%clk 0:02:30.8]} 17... Bd7 {[%clk 0:00:58.1]} 18. Rae1 {[%clk
0:02:23.6]} 18... Rad8 {[%clk 0:00:47.7]} 19. Qf2 {[%clk 0:02:22.4]} 19... f6
{[%clk 0:00:37.5]} 20. e5 {[%clk 0:02:12.7]} 20... fxe5 {[%clk 0:00:36.4]} 21.
dxe5 {[%clk 0:02:12.4]} 21... Nf5 {[%clk 0:00:34.4]} 22. e6 {[%clk 0:02:11.8]}
22... Bc8 {[%clk 0:00:34.4]} 23. Bxf5 {[%clk 0:01:59.8]} 23... Rxf5 {[%clk
0:00:33.9]} 24. Qg3 {[%clk 0:01:55.8]} 24... Qd6 {[%clk 0:00:22.2]} 25. Ne4
{[%clk 0:01:49]} 25... Qd4+ {[%clk 0:00:21.8]} 26. Kh1 {[%clk 0:01:47.1]} 26...
Rdf8 {[%clk 0:00:21.7]} 27. Qh4 {[%clk 0:01:15.5]} 27... Qe5 {[%clk 0:00:20.5]}
28. Ng5 {[%clk 0:01:10.3]} 28... Rxg5 {[%clk 0:00:19.3]} 29. Rxe5 {[%clk
0:01:09]} 29... Rxe5 {[%clk 0:00:20.2]} 30. Qxe7+ {[%clk 0:01:08.4]} 30... Kg8
{[%clk 0:00:19.3]} 31. g3 {[%clk 0:01:02]} 31... Rxe6 {[%clk 0:00:17.9]} 32.
Nxe6 {[%clk 0:00:58.8]} 32... Rxf1+ {[%clk 0:00:14.9]} 33. Kg2 {[%clk
0:00:58.1]} 33... Bxe6 {[%clk 0:00:12.2]} 34. Kxf1 {[%clk 0:00:55.8]} 1-0

[Event "*** Titled Tuesday Blitz"]
[Site "Chess.com"]
[Date "2020.04.21"]
[Round "9"]
[White "ViktoriyaTarasova"]
[Black "1f3_2g41-0"]
[Result "1-0"]
[WhiteElo "2357"]
[BlackElo "2179"]
[TimeControl "180+1"]
[EndTime "11:48:51 PDT"]
[Termination "ViktoriyaTarasova won by resignation"]

1. d4 {[%clk 0:03:00.9]} 1... Nf6 {[%clk 0:02:58.9]} 2. c4 {[%clk 0:03:01.4]}
2... g6 {[%clk 0:02:59]} 3. Nc3 {[%clk 0:03:01.1]} 3... d5 {[%clk 0:02:59.6]} 4.
cxd5 {[%clk 0:02:59.9]} 4... Nxd5 {[%clk 0:03:00.5]} 5. g3 {[%clk 0:03:00.3]}
5... Bg7 {[%clk 0:02:59.9]} 6. Bg2 {[%clk 0:03:00.6]} 6... Nxc3 {[%clk
0:03:00.1]} 7. bxc3 {[%clk 0:03:00.1]} 7... c5 {[%clk 0:03:00.6]} 8. e3 {[%clk
0:03:00.5]} 8... O-O {[%clk 0:03:00.1]} 9. Ne2 {[%clk 0:03:00.3]} 9... cxd4
{[%clk 0:02:55.8]} 10. cxd4 {[%clk 0:02:59.8]} 10... e5 {[%clk 0:02:55.5]} 11.
d5 {[%clk 0:02:58.8]} 11... e4 {[%clk 0:02:46.2]} 12. Rb1 {[%clk 0:02:52.5]}
12... Re8 {[%clk 0:02:44.3]} 13. O-O {[%clk 0:02:51.4]} 13... Nd7 {[%clk
0:02:38.4]} 14. Bb2 {[%clk 0:02:49.3]} 14... Bxb2 {[%clk 0:02:37.1]} 15. Rxb2
{[%clk 0:02:48.9]} 15... Nc5 {[%clk 0:02:37.6]} 16. Nf4 {[%clk 0:02:42.4]} 16...
Qd6 {[%clk 0:02:27.2]} 17. Qd4 {[%clk 0:02:36.7]} 17... b6 {[%clk 0:02:22.7]}
18. Rfb1 {[%clk 0:02:26.4]} 18... Ba6 {[%clk 0:02:20.5]} 19. h4 {[%clk 0:02:24]}
19... Rad8 {[%clk 0:02:18.4]} 20. a4 {[%clk 0:02:22.7]} 20... Nd3 {[%clk
0:02:13.7]} 21. Bxe4 {[%clk 0:02:03.4]} 21... Nxb2 {[%clk 0:02:05.5]} 22. Rxb2
{[%clk 0:02:03.5]} 22... Qe5 {[%clk 0:01:56.5]} 23. Qxe5 {[%clk 0:02:02.8]}
23... Rxe5 {[%clk 0:01:57.4]} 24. Bf3 {[%clk 0:02:00.6]} 24... h6 {[%clk
0:01:50.3]} 25. a5 {[%clk 0:01:51.6]} 25... bxa5 {[%clk 0:01:47]} 26. Ra2 {[%clk
0:01:51]} 26... g5 {[%clk 0:01:45.2]} 27. hxg5 {[%clk 0:01:49.5]} 27... hxg5
{[%clk 0:01:45.2]} 28. Rxa5 {[%clk 0:01:44.5]} 28... gxf4 {[%clk 0:01:32]} 29.
gxf4 {[%clk 0:01:40.8]} 29... Re7 {[%clk 0:01:20.2]} 30. Rxa6 {[%clk 0:01:38.9]}
30... Rb7 {[%clk 0:01:19.7]} 31. Kg2 {[%clk 0:01:35.5]} 31... Kf8 {[%clk
0:01:18.9]} 32. e4 {[%clk 0:01:26.4]} 32... Ke7 {[%clk 0:01:12.2]} 33. e5 {[%clk
0:01:26.5]} 33... Kd7 {[%clk 0:01:08.3]} 34. d6 {[%clk 0:01:24.9]} 34... Rdb8
{[%clk 0:01:04.4]} 35. Bxb7 {[%clk 0:01:17.4]} 35... Rxb7 {[%clk 0:01:05.3]} 36.
Kf3 {[%clk 0:01:16]} 36... Ke6 {[%clk 0:01:04.6]} 37. Kg4 {[%clk 0:01:14.9]}
37... f5+ {[%clk 0:01:01.6]} 38. Kg5 {[%clk 0:01:09.5]} 38... Rg7+ {[%clk
0:01:01]} 39. Kh6 {[%clk 0:01:09.4]} 39... Rd7 {[%clk 0:00:55.2]} 40. Kg6 {[%clk
0:01:07.5]} 40... Rb7 {[%clk 0:00:51.4]} 41. d7+ {[%clk 0:01:04.3]} 41... Kxd7
{[%clk 0:00:50.9]} 42. Kxf5 {[%clk 0:01:04.9]} 42... Ke7 {[%clk 0:00:49.2]} 43.
Rh6 {[%clk 0:01:03.9]} 43... Rb8 {[%clk 0:00:48.2]} 44. Rh7+ {[%clk 0:01:03.3]}
44... Kd8 {[%clk 0:00:48.4]} 45. Rxa7 {[%clk 0:01:03.8]} 45... Rb6 {[%clk
0:00:47.9]} 46. e6 {[%clk 0:01:03.5]} 46... Ke8 {[%clk 0:00:48.1]} 47. Kf6
{[%clk 0:01:03.2]} 47... Rb8 {[%clk 0:00:48.5]} 48. f5 {[%clk 0:01:03]} 48...
Rc8 {[%clk 0:00:48.4]} 49. Rh7 {[%clk 0:01:01.7]} 49... Kd8 {[%clk 0:00:46.2]}
50. Rh8+ {[%clk 0:01:01.2]} 50... Kc7 {[%clk 0:00:46.4]} 51. Rxc8+ {[%clk
0:01:01.5]} 51... Kxc8 {[%clk 0:00:47.3]} 52. e7 {[%clk 0:01:01.9]} 1-0